{"text_format":"1","workbook":"xlsx","n_sheets":2,"sheets":["Employee Absence Report","Locations"],"not_rendered":{"charts":0,"images":0,"macros":1,"external_links":0,"defined_names":12,"comments":0,"pivot_tables":0},"unopened":[],"bounds":{"document_bytes":16777216,"sheet_cells":100000,"rows_first":2000,"rows_last":500,"rows_between":2000,"halvings":0,"cell_chars":16384,"cell_head_chars":4096},"cells_cut":0,"cells_raw":0,"read":"whole","date_system":"1900"}

{"sheet":"Employee Absence Report","index":0,"n_rows":64,"n_cols":24,"rows_kept":64,"cut":false,"hidden":false,"merged":[[57,3,57,13],[2,3,2,17],[12,5,12,7],[35,5,35,7],[4,3,4,16],[5,3,5,16],[6,3,6,16],[8,3,8,16],[9,3,9,16],[14,5,14,7],[20,5,20,7],[22,5,22,7],[16,5,16,7],[62,10,62,15],[62,2,62,9],[41,5,41,7],[44,5,44,7],[48,5,48,7],[59,15,59,16],[60,15,60,16],[59,3,59,13],[60,3,60,13],[54,15,54,16],[53,15,53,16],[56,15,56,16],[57,15,57,16],[53,3,53,13],[54,3,54,13],[56,3,56,13]]}
[]
[]
[null,null,null,"EMPLOYEE ABSENCE REPORT"]
[]
[null,null,null,"Please indicate the reason below for your absence.  Your Pay Voucher will reflect the items listed on this report."]
[null,null,null,"The item you have listed must be in accordance with the Sick Leave and Substitute Teacher Regulations adopted"]
[null,null,null,"by the North Carolina State Board of Education. Employees must utilize appropriate leave when a balance is available."]
[]
[null,null,null,"Please complete this form before your absence or immediately upon returning to work.  Print your name and"]
[null,null,null,"school location then sign your name as shown on your Pay Voucher."]
[]
[null,null,null,"No. of"]
[null,null,null,"Days",null,"Dates",null,null,null,"Description"]
[]
[null,null,"01-01",null,null,null,null,null,null,"01-01.  Sick Leave - Personal Illness",null,null,null,null,null,null,null,null,null,null,{"$f":"IF(ISBLANK(D15),IF(ISBLANK(F15),0,1),0)","v":0},{"$f":"IF(ISBLANK(F15),IF(ISBLANK(D15),0,1),0)","v":0}]
[]
[null,null,"01-02",null,null,null,null,null,null,"01-02.  Sick Leave - Other (Check appropriate category below)",null,null,null,null,null,null,null,null,null,null,{"$f":"IF(ISBLANK(D17),IF(ISBLANK(F17),0,1),0)","v":0},{"$f":"IF(ISBLANK(F17),IF(ISBLANK(D17),0,1),0)","v":0},{"$f":"IF(AND(ISBLANK(D17),ISBLANK(F17)),0,IF(AND(ISBLANK(K18),ISBLANK(K19)),1,0))","v":0},{"$f":"IF(AND(ISBLANK(D17),ISBLANK(F17)),1,0)","v":1}]
[null,null,null,null,null,null,null,null,null,null,null,"  a.  Illness in an employee's immediate family",null,null,null,null,null,null,null,null,null,null,{"$f":"IF(ISBLANK(K18),0,IF(ISBLANK(K19),0,1))","v":0}]
[null,null,null,null,null,null,null,null,null,null,null,"  b.  Death in the immediate family",null,null,null,null,null,null,null,null,null,null,{"$f":"IF(ISBLANK(K19),0,IF(ISBLANK(K18),0,1))","v":0}]
[]
[null,null,"02",null,null,null,null,null,null,"02.  Personal Leave - To be approved by the Principal & Superintendent.",null,null,null,null,null,null,null,null,null,null,{"$f":"IF(ISBLANK(D21),IF(ISBLANK(F21),0,1),0)","v":0},{"$f":"IF(ISBLANK(F21),IF(ISBLANK(D21),0,1),0)","v":0}]
[null,null,null,null,null,null,null,null,null,null,"Request should be made 5 days in advance."]
[null,null,"04",null,null,null,null,null,null,"04.  Other Absences with no Deduction (Check appropriate category below)",null,null,null,null,null,null,null,null,null,null,{"$f":"IF(ISBLANK(D23),IF(ISBLANK(F23),0,1),0)","v":0},{"$f":"IF(ISBLANK(F23),IF(ISBLANK(D23),0,1),0)","v":0},{"$f":"IF(AND(ISBLANK(D23),ISBLANK(F23)),0,IF(AND(ISBLANK(K24),ISBLANK(K25),ISBLANK(M28),ISBLANK(M29),ISBLANK(K30),ISBLANK(K31),ISBLANK(K32),ISBLANK(K33),ISBLANK(K34)),1,0))","v":0},{"$f":"IF(AND(ISBLANK(D23),ISBLANK(F23)),1,0)","v":1}]
[null,null,"04-01",null,null,null,null,null,null,null,null,"  01.  Community responsibilities",null,null,null,null,null,null,null,null,null,null,{"$f":"IF(ISBLANK(K24),0,IF(AND(ISBLANK(K25),ISBLANK(M28),ISBLANK(M29),ISBLANK(K30),ISBLANK(K31),ISBLANK(K32),ISBLANK(K33),ISBLANK(K34)),0,1))","v":0}]
[null,null,"04-02",null,null,null,null,null,null,null,null,"  02.  Approved meetings or assignments",null,null,null,null,null,null,null,null,null,null,{"$f":"IF(ISBLANK(K25),0,IF(AND(ISBLANK(K24),ISBLANK(M28),ISBLANK(M29),ISBLANK(K30),ISBLANK(K31),ISBLANK(K32),ISBLANK(K33),ISBLANK(K34)),0,1))","v":0}]
[null,null,null,null,null,null,null,null,null,null,null,null,"       Circle One:   EC   CTE   Title 1   Other"]
[null,null,null,null,null,null,null,null,null,null,null,"      Civil Leave (Check appropriate category below)"]
[null,null,"04-03",null,null,null,null,null,null,null,null,null,null," 03.  Jury Duty (attach proof of service)",null,null,null,null,null,null,null,null,{"$f":"IF(ISBLANK(M28),0,IF(AND(ISBLANK(K24),ISBLANK(K25),ISBLANK(M29),ISBLANK(K30),ISBLANK(K31),ISBLANK(K32),ISBLANK(K33),ISBLANK(K34)),0,1))","v":0}]
[null,null,"04-04",null,null,null,null,null,null,null,null,null,null," 04. Court Attendance on behalf of OCS (attach subpoena)",null,null,null,null,null,null,null,null,{"$f":"IF(ISBLANK(M29),0,IF(AND(ISBLANK(K24),ISBLANK(K25),ISBLANK(M28),ISBLANK(K30),ISBLANK(K31),ISBLANK(K32),ISBLANK(K33),ISBLANK(K34)),0,1))","v":0}]
[null,null,"04-07",null,null,null,null,null,null,null,null,"  07. Suspension with pay",null,null,null,null,null,null,null,null,null,null,{"$f":"IF(ISBLANK(K30),0,IF(AND(ISBLANK(K24),ISBLANK(K25),ISBLANK(M28),ISBLANK(M29),ISBLANK(K31),ISBLANK(K32),ISBLANK(K33),ISBLANK(K34)),0,1))","v":0}]
[null,null,"04-08",null,null,null,null,null,null,null,null,"  08. Military Leave (attach orders)",null,null,null,null,null,null,null,null,null,null,{"$f":"IF(ISBLANK(K31),0,IF(AND(ISBLANK(K24),ISBLANK(K25),ISBLANK(M28),ISBLANK(M29),ISBLANK(K30),ISBLANK(K32),ISBLANK(K33),ISBLANK(K34)),0,1))","v":0}]
[null,null,"04-09",null,null,null,null,null,null,null,null,"  09. Employees injured in the course & scope of duty (worker's compensation)",null,null,null,null,null,null,null,null,null,null,{"$f":"IF(ISBLANK(K32),0,IF(AND(ISBLANK(K24),ISBLANK(K25),ISBLANK(M28),ISBLANK(M29),ISBLANK(K30),ISBLANK(K31),ISBLANK(K33),ISBLANK(K34)),0,1))","v":0}]
[null,null,"04-10",null,null,null,null,null,null,null,null,"  10. Observance of bona fide religious holiday",null,null,null,null,null,null,null,null,null,null,{"$f":"IF(ISBLANK(K33),0,IF(AND(ISBLANK(K24),ISBLANK(K25),ISBLANK(M28),ISBLANK(M29),ISBLANK(K30),ISBLANK(K31),ISBLANK(K32),ISBLANK(K34)),0,1))","v":0}]
[null,null,"04-11",null,null,null,null,null,null,null,null,"  11. Bill the school for substitute",null,null,null,null,null,null,null,null,null,null,{"$f":"IF(ISBLANK(K34),0,IF(AND(ISBLANK(K24),ISBLANK(K25),ISBLANK(M28),ISBLANK(M29),ISBLANK(K30),ISBLANK(K31),ISBLANK(K32),ISBLANK(K33)),0,1))","v":0}]
[]
[null,null,"20",null,null,null,null,null,null,"20. Annual Leave - To be approved by the Principal and/or Superintendent in",null,null,null,null,null,null,null,null,null,null,{"$f":"IF(ISBLANK(D36),IF(ISBLANK(F36),0,1),0)","v":0},{"$f":"IF(ISBLANK(F36),IF(ISBLANK(D36),0,1),0)","v":0}]
[null,null,null,null,null,null,null,null,null,null,"advance. Teachers, Media Specialists, and other personnel who require"]
[null,null,null,null,null,null,null,null,null,null,"a substitute cannot take annual leave on days when students are in "]
[null,null,null,null,null,null,null,null,null,null,"attendance. "]
[]
[]
[null,null,"28",null,null,null,null,null,null,"28.  Bonus Leave - the same restrictions for the use of Annual Leave apply.",null,null,null,null,null,null,null,null,null,null,{"$f":"IF(ISBLANK(D42),IF(ISBLANK(F42),0,1),0)","v":0},{"$f":"IF(ISBLANK(F42),IF(ISBLANK(D42),0,1),0)","v":0}]
[]
[]
[null,null,"07",null,null,null,null,null,null,"07.  Absence without pay - An employee who is absent for any cause other than",null,null,null,null,null,null,null,null,null,null,{"$f":"IF(ISBLANK(D45),IF(ISBLANK(F45),0,1),0)","v":0},{"$f":"IF(ISBLANK(F45),IF(ISBLANK(D45),0,1),0)","v":0}]
[null,null,null,null,null,null,null,null,null,"     those enumerated above shall not be entitled to receive salary payment for those"]
[null,null,null,null,null,null,null,null,null,"     days."]
[]
[]
[]
[]
[]
[null,null,null,null,null,null,null,null,null,null,null,null,null,null,null,null,null,null,null,null,{"$f":"SUM(U15:W52)","v":0}]
[]
[null,null,null,"Print Employee's Name",null,null,null,null,null,null,null,null,null,null,null,"School Location"]
[]
[]
[null,null,null,"Employee's Signature",null,null,null,null,null,null,null,null,null,null,null,"Date"]
[]
[]
[null,null,null,"Principal's / Supervisor's / Superintendent's Signature",null,null,null,null,null,null,null,null,null,null,null,"Date"]
[]
[null,null,"WHITE - Payroll Via Supervisor",null,null,null,null,null,null,null,"YELLOW - Principal",null,null,null,null,null,"PINK - Employee","OCS-14"]
[null,null,null,null,null,null,null,null,null,null,null,null,null,null,null,null,null,"Revised 10-14-25"]

{"sheet":"Locations","index":1,"n_rows":62,"n_cols":3,"rows_kept":62,"cut":false,"hidden":true,"merged":[]}
["Auxiliary Services Dept.",null,"X"]
["Central Office"]
["Child Nutrition Dept."]
["Community Schools"]
["CTE"]
["Dept. of Instruction"]
["Federal Programs"]
["Finance Dept."]
["Headstart"]
["Human Resources Dept."]
["Information Technology Dept."]
["Instructional Technology"]
["Maintenance Dept."]
["Purchasing/Distribution Dept."]
["Safety & Security"]
["Student Services Dept."]
["Superintendent"]
["Transportation Dept."]
["299 - Onslow County Learning Center"]
["297 - ENC Regional Skills Center"]
["298 - Thompson Early Childhood Center"]
["300 - Early College"]
["304 - Bell Fork Elem."]
["308 - Blue Creek Elem."]
["310 - Carolina Forest Elem."]
["311 - Clear View Elementary"]
["312 - Clyde Erwin Elem."]
["313 - Coastal Elementary"]
["314 - Dixon Elem."]
["318 - Dixon Middle"]
["320 - Dixon High School"]
["321 - Hunters Creek Elem."]
["322 - Hunters Creek Middle"]
["323 - Jacksonville Commons Elem."]
["324 - Jacksonville High School"]
["325 - Jacksonville Commons Middle"]
["329 - Meadow View Elem."]
["330 - Morton Elem."]
["331 - New Bridge Middle"]
["332 - Northwoods Elem."]
["333 - Northside High School"]
["335 - Queens Creek Elem."]
["336 - Northwoods Park Middle"]
["337 - Heritage Elementary"]
["338 - Parkwood Elem."]
["339 - Richlands Elem."]
["340 - Richlands High School"]
["341 - Sand Ridge Elem."]
["342 - Silverdale Elem."]
["343 - Southwest Elem."]
["345 - Southwest Middle"]
["344 - Southwest High School"]
["346 - Summersill Elem."]
["347 - Stateside Elem."]
["350 - Swansboro Elem."]
["351 - Swansboro Middle"]
["352 - Swansboro High School"]
["356 - Trexler Middle"]
["364 - White Oak High school"]
["367 - Woodland Elem."]
["378 - Onslow Virtual School (K-5)"]
["379 - Onslow Virtual School (6-12)"]